Cogmind - Beta 11 @@@ ROGUE MODE // 2022.04.04 @ 17:23:02 Player: Jezoensis Result: Destroyed by as-72828 with Assembled Heavy Rifle Performance ------------- Evolutions (0) 0 Regions Visited (2) 400 Robots Destroyed (30) 150 Value Destroyed (516) 516 Prototype IDs (0) 0 Alien Tech Used (0) 0 Bonus (0) 0 TOTAL SCORE: 1066 Bonus ------- None Cogmind --------- Core Integrity 0/250 Matter 113/300 Energy 92/100 System Corruption 0% Temperature Cool (0) Movement Rolling (105) Ox1 Location -10/Mines Parts ------- > --- POWER (1) -------- (None) > --- PROPULSION (2) --- Light Treads Armored Wheel > --- UTILITY (2) ------ Large Storage Unit > --- WEAPON (2) ------- Assault Rifle > --- INVENTORY (15) --- Light Nuclear Core Armored Wheel Improved Heat Sink Medium Storage Unit High-capacity Storage Unit Visual Processing Unit Improved Terrain Scanner Terrain Scan Processor Assault Rifle Assault Rifle Mining Laser Peak State ------------ > --- POWER ------------ Light Ion Engine > --- PROPULSION ------- Armored Wheel Armored Wheel > --- UTILITY ---------- Large Storage Unit Improved Terrain Scanner > --- WEAPON ----------- Assault Rifle Assault Rifle > --- INVENTORY -------- Light Nuclear Core Light Treads Armored Wheel Improved Heat Sink Medium Storage Unit High-capacity Storage Unit Visual Processing Unit Terrain Scan Processor Light Armor Plating Particle Gun Assault Rifle Assault Rifle Assault Rifle Mining Laser [Rating: 13] Favorites ----------- Power Light Ion Engine Engine Light Ion Engine Propulsion Light Treads Treads Light Treads Wheel Armored Wheel Utility Improved Terrain Scanner Device Improved Terrain Scanner Storage Medium Storage Unit Protection Light Armor Plating Weapon Assault Rifle Energy Gun Medium Laser Ballistic Gun Assault Rifle Special Weapon Mining Laser Build | -11 -10 -10 ------- Run | Scr Mat Min Slots Evolved . | . . . Power . | . . . Propulsion . | . . . Utility . | . . . Weapon . | . . . Parts Attached 42 | 7 29 6 Power 2 | 1 1 . Engine 2 | 1 1 . Core . | . . . Reactor . | . . . Propulsion 7 | 2 3 2 Treads 4 | 2 1 1 Leg . | . . . Wheel 3 | . 2 1 Hover . | . . . Flight . | . . . Utility 16 | 2 13 1 Device 10 | 1 9 . Storage 3 | 1 2 . Processor . | . . . Hackware . | . . . Protection 3 | . 2 1 Artifact . | . . . Weapon 17 | 2 12 3 Energy Gun 5 | 1 3 1 Energy Cannon . | . . . Ballistic Gun 9 | 1 7 1 Ballistic Cannon . | . . . Launcher . | . . . Special Weapon 3 | . 2 1 Impact Weapon . | . . . Slashing Weapon . | . . . Piercing Weapon . | . . . Special Melee Weapon . | . . . Unidentified Prototypes . | . . . Parts Lost 11 | . 5 6 Power 2 | . 1 1 Propulsion 3 | . 2 1 Utility 1 | . . 1 Weapon 5 | . 2 3 Highest Loss Streak 6 | . 2 6 To Critical Strikes . | . . . Average Slot Usage (%) 97 | . 97 93 Engine 13 | . 14 12 Treads 21 | . 22 2 Wheel 6 | . 5 26 Device 9 | . 10 2 Storage 14 | . 14 14 Protection 2 | . 1 10 Energy Gun 5 | . 6 2 Ballistic Gun 21 | . 21 22 Naked Turns . | . . . Heaviest Build 30 | 12 30 30 Greatest Support 40 | 40 40 24 Greatest Overweight (x) 2 | . 1 2 Average Overweight (x) . | . . 1 Largest Inventory Capacity 15 | 8 15 15 Average Capacity 10 | 7 11 15 Most Carried 14 | 5 14 14 Average Carried 8 | 2 8 13 Final Capacity 15 | 8 15 15 Final Carried 14 | 3 14 11 Class Distribution -------------------- 97% | Mutant Dominant Class ---------------- Mutant | -10/Materials Mutant | -10/Mines Resources | -11 -10 -10 ----------- Run | Scr Mat Min Matter Collected 679 | 287 392 . Remotely . | . . . Salvage Created 1059 | 135 924 . Parts 69 | 15 54 . Haulers Intercepted 2 | . 2 . Recyclers Shooed 2 | . 2 . Parts Field Recycled . | . . . Retrieved Matter . | . . . Parts Self-Destructed . | . . . Prevented . | . . . Kills | -11 -10 -10 ------- Run | Scr Mat Min Combat Hostiles Destroyed 13 | . 13 . Guns 13 | . 13 . Classes Destroyed 8 | 2 6 . Builder 5 | . 5 . Tunneler 4 | 4 . . Hauler 2 | . 2 . Recycler 3 | 1 2 . Mechanic 1 | . 1 . Watcher 2 | . 2 . Swarmer 3 | . 3 . Grunt 10 | . 10 . Best Kill Streak 4 | 3 4 . Combat Bots Only 3 | . 3 . Max Kills in Single Turn 1 | 1 1 . Gunslinging . | . . . Exploded . | . . . Melee . | . . . Uniques/NPCs Destroyed . | . . . Combat | -11 -10 -10 -------- Run | Scr Mat Min Damage Taken 1551 | . 801 750 Core 254 | . 157 97 Absorbed by Shields . | . . . Core Remaining (%) 100 | 100 . . Volleys Fired 97 | 17 76 4 Largest 2 | 2 2 2 Hottest 100 | 70 100 100 Shots Fired 190 | 34 149 7 Gun 186 | 34 146 6 Cannon . | . . . Launcher . | . . . Special 4 | . 3 1 Kinetic 120 | 17 99 4 Thermal 53 | 17 33 3 Explosive . | . . . Electromagnetic 17 | . 17 . Robot Hit Streak 14 | 6 14 1 Robot Miss Streak 5 | 2 4 5 Penetration Max . | . . . Secondary Targets 2 | . 2 . Max Gunslinging Chain 1 | . 1 . Shots Hit Robots 110 | 19 90 1 Core Hits 54 | 11 42 1 Critical Kills . | . . . Critical Parts Destroyed . | . . . Critical Strikes 1 | 1 . . Burn 1 | 1 . . Melee Attacks . | . . . Impact . | . . . Slashing . | . . . Piercing . | . . . Sneak Attacks . | . . . Combat Hostiles . | . . . Follow-up Attacks . | . . . Damage Inflicted 1363 | 186 1164 13 Guns 1361 | 186 1162 13 Cannons . | . . . Explosions . | . . . Melee . | . . . Ramming 2 | . 2 . Kinetic 845 | 113 719 13 Thermal 346 | 73 273 . Explosive . | . . . Electromagnetic 170 | . 170 . Impact . | . . . Slashing . | . . . Piercing . | . . . Highest Corruption . | . . . Average Corruption . | . . . Corruption Purged . | . . . Corruption Blocked . | . . . Overload Shots . | . . . Overflow Damage . | . . . Projectiles . | . . . Explosions . | . . . Melee . | . . . Knockbacks . | . . . Impact . | . . . Kinetic . | . . . Secondary . | . . . Self-Inflicted Damage . | . . . Shots . | . . . Rammed 2 | . 2 . Targets Rammed 2 | . 2 . Kicked . | . . . Crushed . | . . . Highest Temperature 224 | 80 224 91 Average Temperature 72 | 33 89 40 Received Heat Transfer 485 | . 405 80 Effects 1 | . 1 . Energy Bleed 1 | . 1 . Siege Activations . | . . . Robots Corrupted . | . . . Combat Hostiles . | . . . Parts Fried . | . . . Impact Corruptions . | . . . Robots Melted . | . . . Combat Hostiles . | . . . Parts Melted 2 | 2 . . Heat Transferred 1110 | 296 814 . Parts Sabotaged . | . . . Parts Stolen . | . . . Parts Stripped . | . . . Power Chain Reactions . | . . . Missiles Intercepted . | . . . Alert | -11 -10 -10 ------- Run | Scr Mat Min Peak Influence 255 | 25 255 39 Initial 24 | . 16 24 Average 89 | 13 108 22 Maximum Alert Level 1 | . 1 . Low Security (%) 88 | 100 86 100 Level 1 11 | . 13 . Level 2 . | . . . Level 3 . | . . . Level 4 . | . . . Level 5 . | . . . High Security . | . . . Max Security . | . . . Squads Dispatched 2 | . 2 . Investigation . | . . . Extermination . | . . . Reinforcement 2 | . 2 . Assault . | . . . Garrison . | . . . Intercept . | . . . Searches Triggered . | . . . Construction Impeded . | . . . Haulers Reinforced . | . . . Active Scanning Responses . | . . . Cargo Convoy Interrupts . | . . . Stealth | -11 -10 -10 --------- Run | Scr Mat Min Distress Signals 1 | . 1 . Communications Jammed . | . . . Distress Signals . | . . . Times Spotted 34 | . 24 10 Peak Tracking Total 10 | . 4 10 Tactical Retreats . | . . . Traps | -11 -10 -10 ------- Run | Scr Mat Min Traps Triggered . | . . . Indirectly . | . . . Trap Hack Attempts . | . . . Triggered . | . . . Disarmed . | . . . Reprogrammed . | . . . Reused . | . . . Traps Extracted . | . . . Installed . | . . . Triggered . | . . . Machines | -11 -10 -10 ---------- Run | Scr Mat Min Machines Disabled 1 | . 1 . Max in Single Turn 1 | . 1 . Machines Sabotaged . | . . . Garrisons Compromised . | . . . Overloaded Fab Kills . | . . . Hacking | -11 -10 -10 --------- Run | Scr Mat Min Machines Accessed 6 | . 6 . Terminals 4 | . 4 . Fabricators . | . . . Repair Stations 1 | . 1 . Recycling Units 1 | . 1 . Scanalyzers . | . . . Garrison Access . | . . . Total Hacks 18 | . 18 . Successful 8 | . 8 . Failed 9 | . 9 . Catastrophic 1 | . 1 . Database Lockouts 1 | . 1 . Manual 17 | . 17 . Terminals 16 | . 16 . Fabricators . | . . . Repair Stations 1 | . 1 . Recycling Units 1 | . 1 . Scanalyzers . | . . . Garrison Access . | . . . Terminal Hacks 4 | . 4 . Robot Analysis 2 | . 2 . Terminal Index 1 | . 1 . Locate Traps 1 | . 1 . Fabricator Hacks . | . . . Repair Station Hacks . | . . . Recycling Unit Hacks . | . . . Scanalyzer . | . . . Garrison Access Hacks . | . . . Unauthorized Hacks 4 | . 4 . Terminals 2 | . 2 . Botnet 2 | . 2 . Fabricators . | . . . Repair Stations 1 | . 1 . Mechanics 1 | . 1 . Recycling Units 1 | . 1 . Recyclers 1 | . 1 . Scanalyzers . | . . . Garrison Access . | . . . Data Cores Recovered . | . . . Used . | . . . Hacking Detections 4 | . 4 . Full Trace Events . | . . . Feedback Events . | . . . Feedback Blocked . | . . . Robot Schematics Acquired . | . . . Robots Built . | . . . Authchips . | . . . Time . | . . . Total Robot Build Rating . | . . . Part Schematics Acquired . | . . . Parts Built . | . . . Authchips . | . . . Time . | . . . Total Part Build Rating . | . . . Parts Repaired . | . . . Time . | . . . Parts Recycled . | . . . Recycled Matter . | . . . Retrieved Matter . | . . . Retrieved Components . | . . . Parts Scanalyzed . | . . . Part Schematics Acquired . | . . . Parts Damaged . | . . . Bothacking | -11 -10 -10 ------------ Run | Scr Mat Min Used RIF Installer . | . . . Robots Hacked . | . . . Non-combat . | . . . Combat . | . . . Robot Hacks Applied . | . . . Relay Couplers Released . | . . . Fabnet Peak Effective % . | . . . Robots Rewired . | . . . Allies Hacked . | . . . Hacks Repelled . | . . . Allies | -11 -10 -10 -------- Run | Scr Mat Min Total Allies . | . . . Largest Group . | . . . Highest-Rated Group . | . . . Highest-Rated Ally . | . . . Total Orders . | . . . Ally Attacks . | . . . Total Damage . | . . . Kills . | . . . Allies Corrupted . | . . . Allies Melted . | . . . Intel | -11 -10 -10 ------- Run | Scr Mat Min Robot Analysis Total 2 | . 2 . Derelict Logs Recovered . | . . . Drone Launches . | . . . Drone Recoveries . | . . . Exploration | -11 -10 -10 ------------- Run | Scr Mat Min Turns Passed 1084 | 151 860 73 Spaces Moved 512 | 70 393 49 Core 20 | 20 . . Treads 330 | 50 280 . Legs . | . . . Wheels 162 | . 113 49 Hover . | . . . Flight . | . . . Fastest Speed 50 | 50 105 105 Average Speed 138 | 128 144 105 Slowest Speed 160 | 160 160 120 Overloaded Moves . | . . . Propulsion Burnouts . | . . . Robots Hopped . | . . . Cave-ins Triggered . | . . . Exploration Rate (%) 36 | 5 84 21 Regions Visited 2 Branch Regions 1 Pre-discovered Areas . | . . . Known Exits Taken . | . . . Unknown Exits Taken 2 | 1 1 . Scrap Searched . | . . . Spaces Dug 4 | . 3 1 Terrain Destroyed 4 | . 3 1 Melee . | . . . Projectile 4 | . 3 1 AOE . | . . . Terrain Rammed . | . . . Walls Destroyed . | . . . Machines Disabled . | . . . Actions | -11 -10 -10 --------- Run | Scr Mat Min Total 683 | 99 524 60 Wait 3 | . 2 1 Move 510 | 69 392 49 Hop . | . . . Pick Up 23 | 6 17 . Fast Attach 4 | 4 . . Attach 14 | 3 8 3 Detach 3 | . 3 . Swap 24 | . 21 3 Drop 3 | . 3 . Fire 97 | 17 76 4 Melee . | . . . Ram . | . . . Kick . | . . . Crush 2 | . 2 . Escape Stasis . | . . . Rewire . | . . . Trap . | . . . Miscellaneous . | . . . Route ------- -11/Scrapyard -10/Materials (discovered 4 exits: [*Mat x3] / [*Min]) -10/Mines History --------- Turn | Location | Event 14 | -11/Scrapyard | Discovered new exit (range 16) 152 | -11/Scrapyard | Entered Materials 324 | -10/Materials | Build established: Mutant 339 | -10/Materials | Discovered new exit (range 16) 515 | -10/Materials | Core integrity fell below 50% 667 | -10/Materials | Discovered new exit (range 16) 727 | -10/Materials | Discovered new exit (range 14) 931 | -10/Materials | Discovered new exit (range 13) 942 | -10/Materials | Central database locked down 1012 | -10/Materials | Entered Mines 1013 | -10/Mines | Assembled infested the area 1082 | -10/Mines | Core integrity fell below 20% 1085 | -10/Mines | Destroyed by as-72828 with Assembled Heavy Rifle Last Messages --------------- Map updated. 00951_ R-06 Scavenger inserts Hcp. Storage Unit into recycling unit. 00989_ U-05 Engineer destroyed. 00990_ R-06 Scavenger collects Terrain Scan Processor. 00996_ Machine disabled. 01008_ Acquired 29 matter. LOCATION=UNKNOWN GOAL=ESCAPE 01013_ ALERT: Infestation in the mines, dispatching Demolisher response squad. 01042_ Assault Rifle destroyed. 01044_ Knocked back. 01053_ S-10 Pest destroyed. 01061_ T-07 Excavator destroyed. 01066_ Assault Rifle destroyed. 01072_ Lgt. Ion Engine destroyed. 01076_ Knocked back. 01076_ Lgt. Armor Plating destroyed. 01077_ Particle Gun destroyed. 01080_ Arm. Wheel destroyed. Map ----- +----------------------------------------------------+ | | | | | | | | | | | | | | | | | | | | | | | | | | | | | | | ???????????????????????????????????????????????? | | ???????????????????????????????????????????????? | | ?????????????????????????????#####?????????????? | | ??????????????????????###???# ##????????????? | | ?????????????????????## ### #????????????? | | ????????????????????## #????????????? | | ??????????? ??????### #????????????? | | ??????????? ### #????????????? | | ?????????? #?????????????? | | ?????????? a #?????????????????? | | ?????????? @ ##?????????#######?? | | ?????????? ### ##????????? #?? | | ???????????? ??????# ##????????" #?? | | ??????????????????????# ####????"" #?? | | ??????????????????????# a ##???"" #?? | | ??????????????????????## a #?# #?? | | ???????????????????????## #?#""" #?? | | ???????????????????????## a ##?#""" #?? | | ?????????????????# ## a#??#""" #?? | | ??????????????????# aa #??# #?? | | ??????????????????# * ####""" #?? | | ??????????????????# |% #""" #?? | | ??????????????????## ## #""" = #?? | | ???????????????????#### #?## ### # *% #?? | | ??????????????????????###???#####?# "###### ##?? | | ??????????????????????????????????# ##????# #??? | | ??????????????????????????????????# #??#### #??? | | ?????????????????????????????????? ??# #??? | | ????????????????????????????????? ??# ####??? | | ????????????????????????????????# ""??# #?????? | | ????????????????????????????????# ""??# #?????? | | ????????????????????????????????#? ""??# ###???? | | ?????????????????????????????????? ""??# ##??? | | ????????????????????????????????? ????# #??? | | ????????????????????????????????? ????# ##?? | +----------------------------------------------------+ Best States ------------- Heat Dissipation 39 Energy Generation 10 Energy Capacity 125 Matter Stores 300 Matter Capacity 300 Sight Range 16 Terrain Scan Range 16 Terrain Scan Density 10 Armor Coverage 150 Evasion (%) 50 Recoil Reduction 2 Item Schematics ----------------- None Robot Schematics ------------------ None Fabricated ------------ Nothing Alien Tech Used ----------------- None Achievements -------------- None Challenges ------------ None Game ------ Seed ProcessingStormField Manual? 0 Play Time 00:15:27 Cumulative 568.4 hours Start 2022.04.04 @ 17:09:01 End 2022.04.04 @ 17:23:02 Sessions 1 Manual Loads 0 Difficulty Rogue Special Mode None Game No. 278 Rogue 151 Adventurer 125 Explorer 2 Win Type - Total 51 Types 44/3/2/0/1/0/0/0/1 Lore% 71 Gallery% 85 Achievement% 68 Wizard Run 0 Options --------- ASCII 0 Keyboard 1 Movement Numpad Keybinds 0 Fullscreen 1 Font 36/TerminusFine Map View 76x50 Tactical HUD 1 Map Filters NONE Filters NONE Steam 1 RUN: 614e3d51-3df9-4a59-9120-79a1024706c6